bitfinex-derivatives/quotes_SOLF0:USTF0_20230901
["timestamp","ask_amount","ask_price","bid_price","bid_amount"]
[1693568177557,282.12937683,19.815,19.807,108.02]
[1693568178353,281.3198,19.815,19.807,108.02]
[1693568179254,108.02,19.812,19.803,108.02]
[1693568179454,259.82,19.812,19.803,108.02]
[1693568179657,15.14,19.81,19.803,108.02]
[1693568182161,123.16,19.81,19.802,0.06095472]
[1693568182360,108.02,19.81,19.802,0.06095472]
[1693568182557,123.16,19.81,19.802,0.06095472]
[1693568182763,108.02,19.81,19.802,0.06095472]
[1693568183061,123.16,19.81,19.802,0.06095472]
[1693568183251,108.02,19.81,19.802,0.06095472]
[1693568183451,123.16,19.81,19.802,0.06095472]
[1693568183650,108.02,19.81,19.802,0.06095472]
[1693568183862,123.16,19.81,19.802,0.06095472]
[1693568184056,108.02,19.81,19.802,0.06095472]
[1693568186853,15.59454546,19.812,19.804,108.02]
[1693568187461,207.34608508,19.812,19.804,108.02]
[1693568192860,206.89153962,19.812,19.804,108.02]
[1693568193660,0.06093011,19.81,19.804,108.02]
[1693568193863,40.81676552,19.81,19.804,108.02]
[1693568196260,0.06093011,19.81,19.808,108.02]
[1693568196467,0.06093011,19.81,19.809,108.02]
[1693568200869,21.1238,19.819,19.809,108.02]
[1693568201168,21.1238,19.819,19.813,108.02]
[1693568201568,15.14,19.821,19.813,108.02]
[1693568202970,55.50749116,19.821,19.813,108.02]
[1693568203271,9.27785384,19.82,19.813,108.02]
[1693568203471,108.02,19.818,19.81,108.02]
[1693568205472,77.08229116,19.821,19.81,108.02]
[1693568205674,185.10229116,19.821,19.813,108.02]
[1693568205969,9.27776782,19.82,19.813,108.02]
[1693568206371,108.02,19.819,19.811,108.02]
[1693568211369,40.36749116,19.821,19.799,214.47830115]
[1693568211567,15.59454546,19.823,19.817,108.02]
[1693568212071,123.61454546,19.823,19.815,108.02]
[1693568213473,163.85280895,19.823,19.815,108.02]
[1693568214372,163.85280895,19.823,19.81,0.06093004]
[1693568214373,123.16,19.821,19.813,108.02]
[1693568231987,15.14,19.821,19.814,108.02]
[1693568239285,149.1004788,19.822,19.814,108.02]
[1693568242189,41.0804788,19.822,19.816,108.02]
[1693568244198,41.0804788,19.822,19.818,108.02]
[1693568251908,40.23826349,19.823,19.818,108.02]
[1693568252204,15.14,19.824,19.818,108.02]
[1693568254907,55.53556003,19.824,19.818,108.02]
[1693568265708,55.53556003,19.824,19.817,108.02]
[1693568267211,55.53556003,19.824,19.811,21.3891]
[1693568267212,40.39556003,19.824,19.822,108.02]
[1693568267410,15.14,19.828,19.822,108.02]
[1693568267816,108.02,19.829,19.822,108.02]
[1693568268009,41.23915236,19.83,19.825,108.02]
[1693568268204,15.14,19.831,19.825,108.02]
[1693568271715,55.54363268,19.831,19.825,108.02]
[1693568271912,15.14,19.831,19.812,39.96367305]
[1693568272113,15.14,19.831,19.826,108.02]
[1693568273710,9.27308525,19.83,19.826,108.02]
[1693568275009,40.82341069,19.832,19.826,108.02]
[1693568275317,0.80323289,19.83,19.826,108.74139696]
[1693568280412,0.80323289,19.83,19.827,108.02]
[1693568283515,0.80323289,19.83,19.826,0.72139696]
[1693568285118,41.57378255,19.83,19.826,0.72139696]
[1693568297525,41.57378255,19.83,19.829,108.02]
[1693568298624,0.80323289,19.83,19.829,108.02]
[1693568314435,0.80323289,19.83,19.828,108.02]
[1693568321943,0.80323289,19.83,19.829,108.02]
[1693568326742,0.80323289,19.83,19.828,108.02]
[1693568337154,0.80323289,19.83,19.829,108.02]
[1693568344562,35.9807,19.841,19.829,108.02]
[1693568344859,35.9807,19.841,19.834,108.02]
[1693568344860,51.7761398,19.84,19.834,108.02]
[1693568345063,9.26938031,19.839,19.834,108.02]
[1693568352064,9.26938031,19.839,19.835,108.02]
[1693568359675,48.9385684,19.839,19.835,108.02]
[1693568359876,39.66918809,19.839,19.835,108.02]
[1693568360073,42.50675949,19.84,19.835,108.02]
[1693568360272,9.26930837,19.839,19.835,108.02]
[1693568370694,9.26930837,19.839,19.836,108.02]
[1693568375193,50.08382449,19.839,19.836,108.02]
[1693568375401,42.50675949,19.84,19.836,108.02]
[1693568375595,9.26904781,19.839,19.836,108.02]
[1693568384603,42.50675949,19.84,19.836,108.02]
[1693568385207,42.50675949,19.84,19.839,108.02]
[1693568385509,51.77577112,19.84,19.839,108.02]
[1693568389807,9.26901163,19.84,19.839,108.02]
[1693568390213,9.26901163,19.841,19.839,108.02]
[1693568390412,9.26901163,19.84,19.839,108.02]
[1693568391016,15.12,19.842,19.839,108.02]
[1693568391017,9.26901163,19.841,19.839,108.02]
[1693568391216,9.26901163,19.84,19.839,108.02]
[1693568391417,9.72355709,19.843,19.839,108.02]
[1693568391719,9.26901163,19.842,19.839,108.02]
[1693568391921,9.26901163,19.841,19.827,20.5124]
[1693568392119,0.45454546,19.843,19.827,20.5124]
[1693568392120,0.45454546,19.843,19.84,108.02]
[1693568392320,9.7235474,19.843,19.84,108.02]
[1693568398224,9.26900194,19.843,19.84,108.02]
[1693568400727,15.12,19.842,19.838,108.02]
[1693568400926,9.26900194,19.841,19.838,108.02]
[1693568401227,9.26900194,19.84,19.838,108.02]
[1693568401424,55.02359703,19.844,19.838,108.02]
[1693568401622,15.12,19.842,19.838,108.02]
[1693568401816,9.26904645,19.841,19.838,108.02]
[1693568402016,9.26904645,19.84,19.835,108.02]
[1693568402222,15.12,19.842,19.835,108.02]
[1693568402421,9.2690539,19.841,19.835,108.02]
[1693568412029,9.2690539,19.841,19.837,108.02]
[1693568417933,9.2690539,19.841,19.837,108.81342643]
[1693568421933,9.2690539,19.841,19.838,108.02]
[1693568437944,9.2690539,19.841,19.836,108.02]
[1693568442045,9.2690539,19.841,19.834,108.02]
[1693568451159,9.2690539,19.841,19.837,108.02]
[1693568452057,9.2690539,19.841,19.838,108.02]
[1693568455455,9.95176897,19.841,19.838,108.70868234]
[1693568455650,0.68271507,19.841,19.838,108.70868234]
[1693568455847,9.26876785,19.84,19.838,108.70868234]
[1693568461963,9.26876785,19.84,19.838,0.68868234]
[1693568464164,0.68271507,19.841,19.838,0.68868234]
[1693568470175,9.26882827,19.84,19.838,0.68868234]
[1693568471279,0.68271507,19.841,19.838,0.68868234]
[1693568478587,9.26876166,19.84,19.838,0.68868234]
[1693568479586,0.68271507,19.841,19.838,0.68868234]
[1693568493998,9.26853774,19.84,19.838,0.68868234]
[1693568496693,0.68271507,19.841,19.838,0.68868234]
[1693568499800,9.26861785,19.84,19.838,0.68868234]
[1693568501305,0.68271507,19.841,19.838,0.68868234]
[1693568507013,108.02,19.839,19.831,129.1143]
[1693568507306,108.02,19.839,19.831,108.02]
[1693568512011,15.13,19.836,19.83,0.06086794]
[1693568515516,15.13,19.834,19.831,0.7767235]
[1693568522120,108.83590844,19.835,19.831,0.7767235]
[1693568527129,108.83590844,19.835,19.831,0.83758837]
[1693568529531,0.81590844,19.835,19.831,0.83758837]
[1693568529824,108.02,19.841,19.834,108.02]
[1693568530126,108.02,19.844,19.836,108.02]
[1693568530319,108.02,19.841,19.833,108.02]
[1693568530526,108.02,19.839,19.831,108.08086487]
[1693568531228,108.02,19.843,19.835,108.02]
[1693568531426,9.26831356,19.842,19.835,108.02]
[1693568531925,9.26831356,19.842,19.836,108.02]
[1693568532125,40.21260997,19.845,19.839,108.02]
[1693568532126,39.75806451,19.845,19.839,108.02]
[1693568532430,108.02,19.846,19.84,271.07937025]
[1693568539428,40.91935483,19.849,19.843,108.02]
[1693568539733,197.29149817,19.85,19.843,108.02]
[1693568539934,9.26492949,19.849,19.843,108.02]
[1693568541135,9.26492949,19.849,19.846,108.02]
[1693568541635,9.26492949,19.849,19.83,41.19354838]
[1693568541636,50.0,19.85,19.848,108.02]
[1693568541837,50.0,19.85,19.849,108.02]
[1693568542525,17.1911,19.85,19.849,108.02]
[1693568543129,11.9114,19.85,19.849,108.02]
[1693568544230,40.39112902,19.856,19.849,108.02]
[1693568544433,123.14,19.86,19.852,108.02]
[1693568544629,9.26113801,19.859,19.852,108.02]
[1693568545038,9.26113801,19.86,19.855,108.02]
[1693568545334,9.26113801,19.859,19.855,108.02]
[1693568545539,21.467,19.861,19.855,108.02]
[1693568546035,9.26021481,19.86,19.855,108.02]
[1693568546337,9.26021481,19.859,19.855,108.02]
[1693568546537,108.02,19.862,19.855,108.02]
[1693568546739,9.26036634,19.861,19.855,108.02]
[1693568548240,123.14,19.86,19.852,108.02]
[1693568548434,9.26036634,19.859,19.852,108.02]
[1693568549038,15.12,19.858,19.852,108.02]
[1693568549238,9.26036634,19.857,19.852,108.02]
[1693568549441,108.02,19.86,19.852,108.02]
[1693568549639,15.12,19.858,19.852,108.02]
[1693568549839,108.02,19.856,19.848,108.02]
[1693568550336,128.7364,19.856,19.848,108.02]
[1693568551937,108.02,19.855,19.847,108.02]
[1693568553744,0.06080648,19.85,19.847,108.02]
[1693568567647,148.19329974,19.855,19.847,108.02]
[1693568567648,40.74559193,19.851,19.847,108.02]
[1693568567847,148.19329974,19.855,19.847,108.02]
[1693568568751,0.06080648,19.85,19.847,108.02]
[1693568572049,0.06080648,19.85,19.845,108.02]
[1693568572245,0.06080648,19.85,19.846,0.12163727]
[1693568581053,40.45979892,19.85,19.846,0.12163727]
[1693568582063,15.11,19.849,19.842,108.20249241]
[1693568582258,108.02,19.847,19.839,108.02]
[1693568587263,108.02,19.847,19.842,0.18249237]
[1693568593557,108.02,19.845,19.842,0.18249237]
[1693568598060,108.02,19.845,19.837,108.02]
[1693568601973,108.02,19.844,19.836,108.02]
[1693568602172,108.02,19.844,19.837,271.04216073]
[1693568602472,108.02,19.844,19.842,0.12166175]
[1693568604079,108.02,19.844,19.838,0.18252914]
[1693568612079,108.02,19.842,19.838,0.18252914]
[1693568612877,108.02,19.842,19.835,271.04375464]
[1693568613878,108.08083097,19.842,19.835,271.04375464]
[1693568617486,108.08083097,19.842,19.838,0.12168627]
[1693568621986,108.02,19.84,19.838,0.12168627]
[1693568627497,108.02,19.84,19.831,271.04625903]
[1693568627688,108.02,19.84,19.832,379.06625903]
[1693568627893,108.02,19.838,19.833,271.04625903]
[1693568628197,108.02,19.838,19.834,271.04625903]
[1693568628387,108.02,19.838,19.835,271.04625903]
[1693568628589,108.02,19.838,19.836,271.04625903]
[1693568628786,108.02,19.838,19.837,271.04625903]
[1693568629190,108.02,19.838,19.831,271.04625903]
[1693568629390,108.02,19.838,19.832,271.04625903]
[1693568629690,108.02,19.838,19.833,271.04625903]
[1693568629889,108.02,19.838,19.834,271.04625903]
[1693568630094,108.02,19.838,19.835,271.04625903]
[1693568630293,108.02,19.838,19.836,271.04625903]
[1693568630489,108.02,19.838,19.837,271.04625903]
[1693568630689,108.02,19.838,19.831,271.04625903]
[1693568630892,108.02,19.838,19.832,271.04625903]
[1693568631099,108.02,19.838,19.833,271.04625903]
[1693568631395,108.02,19.835,19.834,271.04625903]
[1693568631588,108.02,19.835,19.827,108.02]
[1693568632097,108.02,19.834,19.826,108.02]
[1693568632502,108.02,19.834,19.83,0.24346995]
[1693568640304,108.02,19.831,19.83,0.24346995]
[1693568648510,108.02,19.833,19.83,0.24346995]
[1693568654318,147.63290322,19.833,19.83,0.24346995]
[1693568657717,147.63290322,19.833,19.826,108.32439835]
[1693568657718,147.63290322,19.833,19.826,108.02]
[1693568657917,108.02,19.832,19.826,108.02]
[1693568660220,40.103739,19.84,19.827,108.02]
[1693568660221,108.02,19.835,19.827,108.02]
[1693568662321,108.02,19.835,19.834,0.18256592]
[1693568673328,108.02,19.835,19.828,108.02]
[1693568677829,108.02,19.835,19.834,0.18256592]
[1693568681934,108.02,19.836,19.834,0.18256592]
[1693568682137,108.02,19.835,19.834,0.18256592]
[1693568692138,108.02,19.835,19.83,0.24346995]
[1693568692337,21.3356,19.834,19.83,0.24346995]
[1693568706450,108.02,19.838,19.831,108.02]
[1693568706649,108.47454546,19.841,19.834,108.02]
[1693568706944,0.45454546,19.841,19.836,108.02]
[1693568707146,0.06083097,19.842,19.836,108.02]
[1693568712051,0.06083097,19.842,19.835,108.02]
[1693568717655,108.02,19.843,19.835,108.02]
[1693568718052,108.02,19.844,19.836,108.02]
[1693568722055,128.9627,19.845,19.838,108.02]
[1693568728955,20.9427,19.845,19.841,108.02]
[1693568731761,20.9427,19.845,19.843,108.02]
[1693568731959,20.9427,19.845,19.842,108.02]
[1693568734264,108.02,19.85,19.842,108.02]
[1693568734461,128.078,19.85,19.842,108.02]
[1693568743280,128.078,19.85,19.844,0.74389356]
[1693568744581,20.058,19.85,19.845,108.02]
[1693568744984,0.45454546,19.851,19.845,108.02]
[1693568745181,9.71845891,19.851,19.845,108.02]
[1693568745678,24.83845891,19.851,19.845,108.02]
[1693568745884,15.57454546,19.851,19.845,108.02]
[1693568746295,108.02,19.849,19.844,0.74389356]
[1693568752188,108.02,19.848,19.844,0.74389356]
[1693568755689,108.02,19.845,19.837,108.02]
[1693568756295,108.02,19.847,19.84,108.02]
[1693568756887,259.82,19.847,19.84,106.3625]
[1693568757097,108.02,19.844,19.836,108.02]
[1693568759597,108.02,19.841,19.834,0.06085538]
[1693568760797,108.02,19.847,19.84,108.02]
[1693568767401,108.02,19.847,19.84,108.08083696]
[1693568771507,108.02,19.846,19.84,0.06083696]
[1693568774003,40.49999999,19.848,19.842,108.02]
[1693568774306,15.12,19.849,19.842,108.02]
[1693568775810,128.7487,19.85,19.842,108.02]
[1693568776507,20.7287,19.85,19.845,108.02]
[1693568779208,108.47454546,19.853,19.845,108.02]
[1693568779504,15.12,19.851,19.845,108.02]
[1693568779807,149.23260997,19.853,19.845,108.02]
[1693568780009,15.12,19.851,19.845,108.02]
[1693568780206,149.23260997,19.853,19.845,108.02]
[1693568780405,15.12,19.851,19.845,108.02]
[1693568780607,149.23260997,19.853,19.845,108.02]
[1693568780809,15.12,19.851,19.845,108.02]
[1693568781010,149.23260997,19.853,19.845,108.02]
[1693568781308,15.12,19.851,19.845,108.02]
[1693568781509,149.23260997,19.853,19.845,108.02]
[1693568781703,15.12,19.851,19.845,108.02]
[1693568781904,149.23260997,19.853,19.845,108.02]
[1693568782105,149.23260997,19.853,19.844,108.02]
[1693568782106,15.12,19.851,19.844,108.02]
[1693568782301,149.23260997,19.853,19.844,108.02]
[1693568782509,15.12,19.851,19.844,108.02]
[1693568782708,149.23260997,19.853,19.844,108.02]
[1693568782902,15.12,19.851,19.844,108.02]
[1693568783210,108.02,19.849,19.842,108.02]
[1693568792011,15.12,19.849,19.843,108.02]
[1693568804522,15.12,19.851,19.845,108.02]
[1693568818231,40.75806451,19.853,19.84,0.06083696]
[1693568818430,15.12,19.851,19.845,108.02]
[1693568818632,138.79701108,19.853,19.845,108.02]
[1693568818834,15.12,19.851,19.845,108.02]
[1693568819029,138.79701108,19.853,19.845,108.02]
[1693568819230,15.12,19.851,19.845,108.02]
[1693568819531,108.02,19.853,19.845,108.02]
[1693568819832,15.12,19.851,19.845,108.02]
[1693568820129,108.02,19.853,19.845,108.02]
[1693568820332,15.12,19.851,19.845,108.02]
[1693568820533,108.02,19.853,19.845,108.02]
[1693568820735,15.12,19.851,19.845,108.02]
[1693568821030,108.02,19.853,19.845,108.02]
[1693568821233,15.12,19.851,19.845,108.02]
[1693568821432,108.02,19.853,19.845,108.02]
[1693568821631,15.12,19.851,19.845,108.02]
[1693568821832,108.02,19.853,19.845,108.02]
[1693568822032,15.12,19.851,19.846,108.02]
[1693568822234,183.83587833,19.854,19.846,108.02]
[1693568822534,9.2636019,19.853,19.846,108.02]
[1693568834644,108.02,19.851,19.843,108.02]
[1693568847657,148.22151133,19.851,19.843,108.02]
[1693568852167,108.02,19.849,19.842,108.02]
[1693568861667,108.02,19.846,19.838,108.02]
[1693568865872,108.02,19.843,19.835,108.02]
[1693568866575,15.11,19.842,19.835,108.02]
[1693568867078,108.02,19.84,19.832,108.02]
[1693568868573,108.08083686,19.84,19.832,108.02]
[1693568870884,108.08083686,19.84,19.833,108.02]
[1693568870885,0.06083686,19.84,19.833,108.02]
[1693568871976,108.08083686,19.84,19.832,108.02]
[1693568876280,0.06083686,19.84,19.838,108.02]
[1693568884588,0.06083686,19.84,19.839,108.02]
[1693568904903,21.0624,19.847,19.839,108.02]
[1693568905304,15.12,19.849,19.839,108.02]
[1693568906005,108.02,19.853,19.846,108.02]
[1693568911605,15.12,19.849,19.843,108.02]
[1693568919008,108.02,19.853,19.845,108.02]
[1693568922018,15.12,19.851,19.845,108.02]
[1693568928925,15.12,19.851,19.844,108.02]
[1693568935233,55.5592947,19.851,19.844,108.02]
[1693568935931,15.12,19.849,19.842,108.02]
[1693568938935,9.26334291,19.852,19.848,108.02]
[1693568939134,49.9726628,19.852,19.848,108.02]
[1693568939331,9.26334291,19.852,19.851,108.02]
[1693568939730,0.45454546,19.858,19.851,108.02]
[1693568940033,21.7948,19.859,19.853,108.02]
[1693568941330,21.7948,19.859,19.856,108.02]
[1693568941926,21.7948,19.859,19.855,108.02]
[1693568945233,9.25959911,19.858,19.855,108.02]
[1693568948841,9.25959911,19.857,19.855,108.02]
[1693568949032,9.25959911,19.856,19.855,108.02]
[1693568950036,15.12,19.86,19.855,108.02]
[1693568950237,9.25959911,19.859,19.855,108.02]
[1693568950441,9.25959911,19.858,19.855,108.02]
[1693568950641,9.25959911,19.857,19.855,108.02]
[1693568950838,9.25959911,19.856,19.855,108.02]
[1693568951039,15.12,19.86,19.855,108.02]
[1693568951238,9.25959911,19.859,19.855,108.02]
[1693568951442,9.25959911,19.858,19.855,108.02]
[1693568951642,9.25959911,19.857,19.855,108.02]
[1693568951839,9.25959911,19.856,19.855,108.02]
[1693568952345,15.12,19.862,19.855,108.02]
[1693568952640,15.12,19.86,19.855,108.02]
[1693568952841,15.12,19.862,19.855,108.02]
[1693568953044,15.12,19.86,19.855,108.02]
[1693568953343,15.12,19.862,19.855,108.02]
[1693568953641,15.12,19.86,19.855,108.02]
[1693568953839,15.12,19.862,19.855,108.02]
[1693568954036,9.25962749,19.861,19.855,108.02]
[1693568959047,15.11,19.86,19.855,108.02]
[1693568959238,108.02,19.86,19.853,108.02]
[1693568966152,108.02,19.859,19.852,0.06079963]
[1693568967554,15.11,19.858,19.852,0.06079963]
[1693568972458,15.11,19.858,19.851,108.02]
[1693568973659,0.06079964,19.852,19.851,108.02]
[1693568982065,0.06079964,19.852,19.85,108.02]
[1693568986766,0.06079964,19.852,19.848,0.12162359]
[1693568987165,15.11,19.851,19.848,0.12162359]
[1693568987567,15.11,19.851,19.844,108.02]
[1693568991961,15.11,19.851,19.848,0.12162359]
[1693568992967,108.08079964,19.852,19.848,0.12162359]
[1693568993372,0.06079964,19.852,19.848,0.12162359]
[1693568993969,0.06079964,19.852,19.851,108.02]
[1693568995068,21.7029,19.859,19.851,108.02]
[1693568995272,21.7029,19.859,19.853,108.02]
[1693568998875,108.02,19.858,19.85,108.02]
[1693569001281,123.14,19.858,19.85,108.02]
[1693569002082,108.02,19.856,19.848,108.14162359]
[1693569002679,108.02,19.856,19.848,108.02]
[1693569003782,0.06079949,19.852,19.848,108.02]
[1693569007284,0.06079949,19.852,19.848,108.14162328]
[1693569007578,108.02,19.849,19.844,0.18247143]
[1693569012097,108.02,19.847,19.844,0.18247143]
[1693569012794,259.82,19.847,19.84,0.24334393]
[1693569012998,108.02,19.847,19.84,0.24334393]
[1693569014291,15.12,19.849,19.84,0.24334393]
[1693569014497,108.02,19.846,19.84,0.24334393]
[1693569017703,108.02,19.846,19.838,108.02]
[1693569018598,0.06082399,19.844,19.838,108.02]
[1693569020595,108.02,19.843,19.835,108.02]
[1693569022201,0.06082399,19.844,19.84,0.12167229]
[1693569022202,108.08082399,19.844,19.84,0.12167229]
[1693569032009,15.12,19.842,19.84,0.12167229]
[1693569032513,15.12,19.842,19.835,108.02]
[1693569032713,36.2704,19.842,19.835,108.02]
[1693569034810,0.06082398,19.844,19.83,651.8]
[1693569035012,108.02,19.849,19.841,108.02]
[1693569037118,108.02,19.849,19.844,0.06082397]
[1693569041918,15.12,19.851,19.844,0.06082397]
[1693569042122,108.02,19.85,19.844,0.06082397]
[1693569043425,21.108,19.849,19.844,0.06082397]
[1693569046824,36.228,19.849,19.844,0.06082397]
[1693569048220,108.02,19.847,19.844,0.06082397]
[1693569062528,108.02,19.847,19.84,108.14167228]
[1693569062529,108.02,19.847,19.84,108.02]
[1693569063534,0.06082394,19.844,19.84,108.02]
[1693569065935,0.06082394,19.844,19.84,108.1416722]
[1693569070436,108.08082394,19.844,19.84,0.1216722]
[1693569077649,108.02,19.844,19.837,108.02]
[1693569078653,108.08082394,19.844,19.837,108.02]
[1693569081057,108.08082394,19.844,19.84,0.12167219]
[1693569082058,15.12,19.842,19.84,0.12167219]
[1693569082455,36.3247,19.842,19.84,0.12167219]
[1693569085759,21.2047,19.842,19.84,0.12167219]
[1693569092561,21.2047,19.842,19.837,108.02]
[1693569095958,21.2047,19.842,19.84,0.12167219]
[1693569161010,21.2047,19.842,19.837,108.02]
[1693569161210,129.2247,19.842,19.836,0.1825448]
[1693569171914,108.02,19.84,19.836,0.1825448]
[1693569181124,0.06082394,19.844,19.839,108.02]
[1693569182726,108.02,19.846,19.839,108.02]
[1693569183720,0.06083619,19.84,19.839,108.02]
[1693569197533,20.1869,19.847,19.839,108.02]
[1693569197730,20.1869,19.847,19.841,108.02]
[1693569206139,20.1869,19.847,19.844,108.02]
[1693569206543,15.57454546,19.851,19.844,108.02]
[1693569206742,20.229,19.849,19.844,108.02]
[1693569212041,20.229,19.849,19.845,108.02]
[1693569222049,20.229,19.849,19.846,108.02]
[1693569232060,20.229,19.849,19.848,108.02]
[1693569247474,0.45454546,19.852,19.848,108.02]
[1693569249574,39.68564231,19.853,19.851,108.02]
[1693569249773,21.1176,19.854,19.851,108.02]
[1693569250174,15.11,19.858,19.851,108.02]
[1693569250371,15.11,19.856,19.851,108.02]
[1693569250571,15.11,19.856,19.852,108.02]
[1693569260881,21.1176,19.857,19.852,108.02]
[1693569262077,21.1176,19.857,19.853,108.02]
[1693569267988,15.11,19.856,19.853,108.02]
[1693569271891,21.1176,19.857,19.853,108.02]
[1693569278195,15.11,19.856,19.853,108.02]
[1693569278396,15.11,19.856,19.849,108.02]
[1693569282103,15.11,19.854,19.847,108.02]
[1693569290107,123.13,19.856,19.848,108.02]
[1693569291105,274.93,19.856,19.848,108.02]
[1693569292905,259.82,19.853,19.844,108.02]
[1693569293108,260.27454546,19.853,19.844,108.02]
[1693569293312,259.82,19.853,19.844,108.02]
[1693569293508,260.27454546,19.853,19.844,108.02]
[1693569293700,259.82,19.853,19.844,108.02]
[1693569294006,260.27454546,19.853,19.844,108.02]
[1693569294310,259.82,19.853,19.844,108.02]
[1693569294508,260.27454546,19.853,19.844,108.02]
[1693569294710,259.82,19.853,19.844,108.02]
[1693569294908,260.27454546,19.853,19.844,108.02]
[1693569295111,259.82,19.853,19.844,108.02]
[1693569295306,260.27454546,19.853,19.844,108.02]
[1693569295507,259.82,19.853,19.844,108.02]
[1693569295708,260.27454546,19.853,19.844,108.02]
[1693569296007,259.82,19.853,19.844,108.02]
[1693569296211,260.27454546,19.853,19.844,108.02]
[1693569296409,259.82,19.853,19.844,108.02]
[1693569296605,260.27454546,19.853,19.844,108.02]
[1693569296809,259.82,19.853,19.844,108.02]
[1693569297009,260.27454546,19.853,19.844,108.02]
[1693569297210,259.82,19.853,19.844,108.02]
[1693569297512,260.27454546,19.853,19.844,108.02]
[1693569297712,259.82,19.853,19.844,108.02]
[1693569297909,260.27454546,19.853,19.844,108.02]
[1693569298111,259.82,19.853,19.844,108.02]
[1693569298311,260.27454546,19.853,19.844,108.02]
[1693569298513,259.82,19.853,19.844,108.02]
[1693569298709,260.27454546,19.853,19.844,108.02]
[1693569298905,259.82,19.853,19.844,108.02]
[1693569299211,260.27454546,19.853,19.844,108.02]
[1693569299510,259.82,19.853,19.844,108.02]
[1693569299714,260.27454546,19.853,19.844,108.02]
[1693569299915,259.82,19.853,19.844,108.02]
[1693569300116,260.27454546,19.853,19.844,108.02]
[1693569300414,259.82,19.853,19.844,108.02]
[1693569300615,260.27454546,19.853,19.844,108.02]
[1693569300816,259.82,19.853,19.83,500.0]
[1693569301017,260.27454546,19.853,19.844,108.02]
[1693569301214,259.82,19.853,19.844,108.02]
[1693569301412,260.27454546,19.853,19.844,108.02]
[1693569301612,259.82,19.849,19.841,108.02]
[1693569301813,274.94,19.849,19.841,108.02]
[1693569302013,108.02,19.846,19.838,108.02]
[1693569303508,0.06083578,19.84,19.838,108.02]
[1693569314125,0.06083578,19.84,19.839,108.02]
[1693569317526,20.6985,19.848,19.839,108.02]
[1693569317728,20.6985,19.848,19.842,108.02]
[1693569318630,0.06082351,19.844,19.842,108.02]
[1693569320128,0.06082351,19.844,19.84,108.02]
[1693569322034,0.06082351,19.844,19.839,108.02]
[1693569331935,0.06082351,19.844,19.838,108.02]
[1693569334240,108.02,19.846,19.838,108.02]
[1693569335141,0.0608234,19.844,19.838,108.02]
[1693569339041,0.0608234,19.844,19.839,271.00122414]
[1693569340943,108.0808234,19.844,19.839,271.00122414]
[1693569341144,108.0808234,19.844,19.84,271.00122414]
[1693569341446,108.0808234,19.844,19.841,271.00122414]
[1693569341745,108.0808234,19.844,19.837,108.02]
[1693569341946,108.0808234,19.844,19.838,271.00197101]
[1693569345146,108.0808234,19.844,19.837,108.02]
[1693569345338,108.0808234,19.844,19.839,270.99947446]